bitfinex/quotes_SOLUSD_20240906
["timestamp","ask_amount","ask_price","bid_price","bid_amount"]
[1725655227230,2.00629417,124.61,124.46,8.0341]
[1725655227552,2.00629417,124.61,124.42,16.6351]
[1725655227553,6.2751,124.58,124.42,16.6351]
[1725655227841,6.2751,124.58,124.4,26.3486]
[1725655227842,20.0762,124.53,124.4,6.2531]
[1725655228051,8.0354,124.45,124.4,6.2531]
[1725655228343,8.0358,124.45,124.37,8.0404]
[1725655228536,8.0361,124.44,124.38,8.0398]
[1725655228733,20.0856,124.47,124.36,16.6351]
[1725655228933,20.0,124.46,124.36,16.6351]
[1725655229130,20.0909,124.44,124.36,16.6351]
[1725655229334,20.0909,124.44,124.29,35.73689371]
[1725655229335,8.0413,124.36,124.29,24.6804]
[1725655229632,20.0952,124.41,124.29,24.6801]
[1725655229947,22.06644043,124.4,124.29,24.6801]
[1725655230247,8.0408,124.37,124.29,24.6801]
[1725655230444,8.0408,124.37,124.3,8.0445]
[1725655230658,22.06644043,124.4,124.27,6.2531]
[1725655230659,0.05639051,124.36,124.27,8.0465]
[1725655230821,20.105,124.35,124.21,8.0504]
[1725655231151,20.105,124.35,124.2,43.0161]
[1725655231152,22.06765649,124.34,124.2,43.0161]
[1725655231443,22.06765649,124.34,124.2,36.763]
[1725655231444,20.1109,124.32,124.2,36.763]
[1725655231755,153.81183474,124.31,124.13,15.1772]
[1725655231919,8.052,124.2,124.13,15.1772]
[1725655232126,8.0507,124.22,124.13,15.1772]
[1725655232329,0.05639051,124.21,124.16,8.0539]
[1725655232935,0.05639051,124.21,124.16,20.1348]
[1725655233347,0.05639051,124.21,124.12,50.0]
[1725655233348,8.10769051,124.21,124.12,8.0565]
[1725655233533,8.0526,124.19,124.1,20.1435]
[1725655233728,8.10929051,124.18,124.11,8.0572]
[1725655233932,0.05639051,124.18,124.12,8.0562]
[1725655234133,0.05639051,124.18,124.1,20.1435]
[1725655234342,0.05639051,124.18,124.12,8.0565]
[1725655234952,0.05639051,124.18,124.15,8.0546]
[1725655235939,0.05639051,124.18,124.16,8.0539]
[1725655236255,0.05639051,124.18,124.17,45.0]
[1725655237740,8.0467,124.28,124.22,8.0499]
[1725655237954,8.0456,124.3,124.23,45.0]
[1725655238162,8.0457,124.29,124.23,53.0495]
[1725655238473,8.0453,124.3,124.23,53.0493]
[1725655238829,8.0453,124.3,124.24,8.0489]
[1725655239033,8.0453,124.3,124.25,45.0]
[1725655239637,2.0115361,124.36,124.25,45.0]
[1725655239838,8.0442,124.32,124.26,8.0475]
[1725655240048,8.0426,124.34,124.28,8.0462]
[1725655240247,20.1048,124.35,124.25,45.0]
[1725655240458,2.01142688,124.34,124.25,45.0]
[1725655240663,8.0463,124.28,124.2,20.1279]
[1725655240832,8.0471,124.27,124.21,53.0508]
[1725655241143,8.0471,124.27,124.21,45.0]
[1725655241456,8.0496,124.23,124.17,8.0534]
[1725655241638,8.0503,124.22,124.16,20.1339]
[1725655242234,8.0503,124.22,124.16,28.1879]
[1725655242452,20.0,124.21,124.16,28.1879]
[1725655242650,8.0489,124.24,124.16,20.1339]
[1725655242956,2.01251207,124.28,124.13,40.278]
[1725655242957,20.0,124.28,124.23,8.0495]
[1725655243155,20.0,124.28,124.21,20.1255]
[1725655243354,8.0484,124.25,124.19,8.0515]
[1725655243553,22.01220714,124.24,124.13,20.1388]
[1725655243857,8.0502,124.22,124.16,28.1891]
[1725655244046,20.0,124.21,124.16,28.1891]
[1725655244242,20.0,124.21,124.16,20.1351]
[1725655244643,8.0493,124.24,124.16,20.1351]
[1725655244837,20.0,124.25,124.18,20.1305]
[1725655245050,20.0,124.25,124.22,8.0502]
[1725655245464,20.0,124.26,124.21,28.1776]
[1725655245667,8.0462,124.29,124.22,45.0]
[1725655245838,2.01193203,124.31,124.22,45.0]
[1725655246167,2.01193203,124.31,124.22,53.0501]
[1725655246168,8.0476,124.27,124.22,53.0501]
[1725655246658,2.01185644,124.32,124.23,20.1225]
[1725655246974,131.8,124.34,124.23,20.1225]
[1725655247143,131.8,124.34,124.24,45.0]
[1725655247347,8.0452,124.3,124.24,53.0488]
[1725655247971,8.0469,124.27,124.23,20.1225]
[1725655248280,20.1106,124.32,124.2,20.1283]
[1725655248570,131.8,124.34,124.23,20.1237]
[1725655248778,131.8,124.34,124.21,40.2539]
[1725655248955,20.1049,124.35,124.26,28.1653]
[1725655249146,131.8,124.37,124.21,40.2539]
[1725655249147,8.043,124.34,124.29,8.0451]
[1725655249347,20.0997,124.38,124.28,20.1145]
[1725655249348,8.0419,124.35,124.3,8.0449]
[1725655249546,6.335,124.39,124.3,20.111]
[1725655249766,6.335,124.39,124.31,45.0]
[1725655249961,68.3519,124.41,124.31,53.0442]
[1725655249962,2.01023439,124.4,124.31,53.0442]
[1725655250162,20.0952,124.41,124.3,20.111]
[1725655250163,8.0405,124.37,124.3,20.111]
[1725655250360,8.0396,124.39,124.32,20.1077]
[1725655250567,260.3,124.43,124.33,45.0]
[1725655250754,260.3,124.43,124.31,45.0]
[1725655251158,2.00972648,124.42,124.31,45.0]
[1725655251368,8.0392,124.39,124.33,8.043]
[1725655251655,8.0414,124.36,124.31,8.0441]
[1725655251965,8.0405,124.37,124.32,45.0]
[1725655252272,8.0405,124.37,124.32,53.0435]
[1725655252473,8.0392,124.39,124.33,8.0425]
[1725655252783,8.0404,124.38,124.33,28.1494]
[1725655253070,20.0,124.37,124.33,28.1494]
[1725655254050,20.0,124.37,124.34,53.0422]
[1725655254264,20.0,124.39,124.34,53.0422]
[1725655254480,20.0,124.42,124.34,53.0422]
[1725655254666,22.00988502,124.42,124.34,45.0]
[1725655254977,42.10428502,124.42,124.34,45.0]
[1725655255483,40.0944,124.42,124.34,45.0]
[1725655255863,8.0401,124.38,124.34,45.0]
[1725655256159,42.10436468,124.42,124.34,45.0]
[1725655256160,8.0389,124.4,124.34,45.0]
[1725655256362,8.0389,124.4,124.35,8.0412]
[1725655256570,192.0678,124.45,124.35,8.0412]
[1725655256571,8.0379,124.41,124.36,53.041]
[1725655256763,20.0884,124.45,124.36,45.0]
[1725655257083,8.0371,124.43,124.38,8.0397]
[1725655257250,2.00937892,124.47,124.37,20.1003]
[1725655257451,8.0373,124.42,124.37,28.1406]
[1725655257668,8.0373,124.42,124.38,45.0]
[1725655258170,8.0371,124.43,124.38,8.0398]
[1725655258361,8.0358,124.45,124.4,8.0385]
[1725655258567,8.036,124.44,124.41,45.0]
[1725655258766,8.0385,124.41,124.37,20.1003]
[1725655258966,20.0863,124.47,124.39,8.0389]
[1725655258967,22.0960199,124.47,124.39,8.0389]
[1725655259271,22.0960199,124.47,124.4,45.0]
[1725655259272,20.0863,124.47,124.4,45.0]
[1725655259777,8.038,124.41,124.37,20.1003]
[1725655259953,22.09952037,124.45,124.34,20.1058]
[1725655260476,266.911,124.52,124.37,32.71044089]
[1725655260668,8.0332,124.49,124.44,8.0358]
[1725655260863,8.032,124.51,124.45,8.0352]
[1725655261067,8.032,124.51,124.46,8.0346]
[1725655261273,8.032,124.51,124.47,45.0]
[1725655261456,20.0748,124.54,124.45,20.0874]
[1725655261663,8.034,124.47,124.42,20.0926]
[1725655261965,8.034,124.47,124.43,45.0]
[1725655262157,20.0781,124.52,124.43,45.0]
[1725655262486,20.0781,124.52,124.44,8.0354]
[1725655262487,8.0329,124.49,124.44,8.0354]
[1725655262683,8.0329,124.49,124.45,45.0]
[1725655262852,2.00825686,124.53,124.45,45.0]
[1725655263057,42.47542075,124.57,124.45,45.0]
[1725655263058,20.0714,124.56,124.45,45.0]
[1725655263258,8.0309,124.52,124.47,8.0339]
[1725655264071,8.0303,124.53,124.48,53.0332]
[1725655264685,22.35729297,124.59,124.52,8.0307]
[1725655264894,22.35729297,124.59,124.48,45.0]
[1725655264895,8.029,124.55,124.51,8.0313]
[1725655265574,8.0307,124.53,124.48,53.033]
[1725655265896,20.0698,124.57,124.48,45.0]
[1725655266200,131.8,124.59,124.48,45.0]
[1725655266201,8.0289,124.55,124.51,20.0778]
[1725655266370,131.8,124.59,124.51,20.0778]
[1725655266570,22.07379992,124.59,124.48,65.0833]
[1725655266768,131.8,124.58,124.44,15.7377]
[1725655266980,20.0747,124.54,124.44,8.0358]
[1725655267185,20.0747,124.54,124.38,32.71044089]
[1725655267186,133.80879914,124.53,124.38,15.8606]
[1725655267390,8.0353,124.46,124.39,20.0973]
[1725655267793,131.8,124.52,124.38,15.8606]
[1725655267971,20.0,124.51,124.38,15.8606]
[1725655268173,8.0328,124.49,124.44,20.0888]
[1725655268691,20.0,124.51,124.46,20.0858]
[1725655268883,8.0314,124.52,124.47,53.0335]
[1725655269077,8.0314,124.52,124.48,8.0333]
[1725655269280,8.0316,124.51,124.47,45.0]
[1725655270290,8.0311,124.52,124.47,53.0334]
[1725655270634,153.80811273,124.51,124.37,6.4616]
[1725655270893,8.0354,124.45,124.4,8.0384]
[1725655271092,8.0368,124.43,124.39,20.0971]
[1725655271296,22.09561027,124.47,124.37,8.0403]
[1725655271590,20.0,124.46,124.38,8.0396]
[1725655271774,8.0386,124.4,124.36,20.1022]
[1725655271976,20.0895,124.45,124.36,28.1432]
[1725655271977,8.038,124.41,124.36,28.1432]
[1725655272592,8.0339,124.48,124.43,8.036]
[1725655272775,26.6292,124.51,124.42,20.0922]
[1725655273094,8.0329,124.49,124.42,20.0922]
[1725655273397,8.0321,124.5,124.44,20.0889]
[1725655273566,8.0328,124.49,124.45,53.0352]
[1725655273775,8.0317,124.51,124.46,8.0346]
[1725655274271,20.0745,124.54,124.45,53.0351]
[1725655274593,8.0342,124.47,124.41,20.0942]
[1725655274793,8.0342,124.47,124.42,45.0]
[1725655275384,8.0342,124.47,124.42,53.0371]
[1725655276096,2.00838358,124.53,124.42,53.0371]
[1725655276097,8.0304,124.53,124.48,8.0331]
[1725655276314,8.0304,124.53,124.49,45.0]
[1725655276781,8.0304,124.53,124.48,53.0333]
[1725655276974,8.0295,124.54,124.48,53.0333]
[1725655277179,6.6332,124.61,124.48,45.0]
[1725655277495,6.6332,124.61,124.46,32.71044089]
[1725655277496,22.0683261,124.62,124.5,20.0797]
[1725655277683,8.0283,124.56,124.51,53.0308]
[1725655277892,8.0283,124.56,124.51,45.0]
[1725655278186,8.0276,124.57,124.51,45.0]
[1725655278779,8.0269,124.58,124.52,8.0307]
[1725655279103,8.0269,124.58,124.51,45.0]
[1725655279104,8.0269,124.58,124.53,53.0301]
[1725655279276,8.0234,124.64,124.58,8.0267]
[1725655279483,8.0234,124.64,124.54,45.0]
[1725655279484,20.0499,124.69,124.54,56.5916]
[1725655279697,2.0058429,124.73,124.59,20.0649]
[1725655279698,8.0231,124.64,124.59,20.0649]
[1725655279896,8.0211,124.68,124.59,20.0649]
[1725655280200,8.0217,124.67,124.61,20.061]
[1725655280408,8.0205,124.68,124.61,20.061]
[1725655280711,28.21769016,124.73,124.65,8.0223]
[1725655280712,8.0193,124.7,124.65,8.0223]
[1725655280908,8.0193,124.7,124.66,45.0]
[1725655281497,8.02,124.69,124.66,45.0]
[1725655281684,8.02,124.69,124.65,45.0]
[1725655281885,8.0186,124.71,124.64,45.0]
[1725655282088,8.0186,124.71,124.65,8.0221]
[1725655282298,20.0383,124.77,124.63,20.0581]
[1725655282299,8.0179,124.72,124.66,53.0216]
[1725655282501,8.0193,124.7,124.66,45.0]
[1725655282702,8.022,124.66,124.62,15.9968]
[1725655283001,40.0798,124.76,124.63,45.0]
[1725655283002,8.0211,124.67,124.63,45.0]
[1725655283206,8.0202,124.69,124.63,53.0233]
[1725655283515,8.0205,124.68,124.63,53.0237]
[1725655283701,20.0479,124.71,124.6,20.0641]
[1725655283702,20.0479,124.71,124.61,8.0244]
[1725655283883,8.0205,124.68,124.63,8.0237]
[1725655284288,20.0,124.7,124.62,20.0595]
[1725655284481,8.0191,124.71,124.65,8.0223]
[1725655284808,20.042,124.74,124.61,32.71044089]
[1725655284809,20.042,124.74,124.64,20.0563]
[1725655284984,40.0798,124.76,124.67,8.0211]
[1725655285185,42.0841924,124.76,124.65,45.0]
[1725655285381,8.0205,124.68,124.65,45.0]
[1725655285599,42.0841924,124.76,124.61,20.062]
[1725655285600,8.0198,124.7,124.64,53.0229]
[1725655285804,8.02,124.69,124.65,45.0]
[1725655286112,8.0193,124.7,124.65,53.0223]
[1725655286408,8.0209,124.68,124.63,28.0814]
[1725655287090,8.0198,124.7,124.64,8.0229]
[1725655287279,8.0202,124.69,124.64,8.0229]
[1725655287486,8.0193,124.7,124.65,8.0224]
[1725655287685,8.0193,124.7,124.66,45.0]
[1725655288404,8.0186,124.71,124.66,45.0]
[1725655288708,8.018,124.72,124.67,8.021]
[1725655289005,8.0173,124.73,124.68,53.0205]
[1725655289183,8.0173,124.73,124.68,8.0205]
[1725655289386,8.0173,124.73,124.69,45.0]
[1725655290110,20.0425,124.74,124.65,20.0551]
[1725655290292,8.0204,124.69,124.65,28.0775]
[1725655290704,8.0193,124.7,124.66,8.0217]
[1725655290907,8.0193,124.7,124.65,28.0775]
[1725655291206,8.0205,124.68,124.64,14.5386]
[1725655291414,8.0205,124.68,124.64,8.023]
[1725655291600,8.0232,124.64,124.59,28.0906]
[1725655291910,20.0,124.67,124.59,20.0649]
[1725655292094,20.0,124.68,124.59,20.0649]
[1725655292287,131.8,124.71,124.61,20.0615]
[1725655292603,8.0205,124.68,124.63,8.0236]
[1725655293184,20.0,124.7,124.61,20.0615]
[1725655293383,8.0245,124.62,124.58,26.4554]
[1725655293611,8.0255,124.61,124.56,23.4144]
[1725655293796,8.0255,124.61,124.56,15.3867]
[1725655293995,8.0258,124.6,124.56,15.3867]
[1725655294198,20.0569,124.65,124.57,8.0273]
[1725655294397,8.0245,124.62,124.57,8.0273]
[1725655295113,8.0225,124.65,124.6,8.0253]
[1725655295417,8.0225,124.65,124.61,8.0249]
[1725655295709,8.0227,124.65,124.6,8.0254]
[1725655295884,8.0212,124.67,124.63,8.0236]
[1725655296087,8.0212,124.67,124.64,45.0]
[1725655296510,8.0212,124.67,124.63,45.0]
[1725655296810,20.0471,124.71,124.63,65.0584]
[1725655297110,22.0505604,124.72,124.63,73.082]
[1725655297302,8.021,124.68,124.64,8.023]
[1725655297495,8.021,124.68,124.65,45.0]
[1725655297818,8.0195,124.7,124.65,53.0222]
[1725655297997,8.0186,124.71,124.65,65.0554]
[1725655298311,8.0195,124.7,124.66,8.0216]
[1725655298537,60.1236,124.75,124.67,45.0]
[1725655298538,8.0187,124.71,124.67,45.0]
[1725655298722,8.0187,124.71,124.67,53.0211]
[1725655298904,8.0181,124.72,124.67,45.0]
[1725655299211,8.0181,124.72,124.67,28.0733]
[1725655299516,8.0181,124.72,124.68,45.0]
[1725655300119,8.0162,124.75,124.7,8.0187]
[1725655300302,40.0653,124.8,124.71,53.0184]
[1725655300619,40.0653,124.8,124.69,20.049]
[1725655300620,8.017,124.74,124.7,8.0191]
[1725655300817,8.017,124.74,124.71,45.0]
[1725655301920,160.00349016,124.82,124.73,8.0167]
[1725655302113,8.0129,124.8,124.75,8.0158]
[1725655302415,20.0249,124.85,124.76,45.0]
[1725655302726,20.0249,124.85,124.77,20.0362]
[1725655302896,8.0116,124.82,124.78,45.0]
[1725655303101,14.30979016,124.89,124.78,45.0]
[1725655303319,8.007,124.89,124.83,8.0102]
[1725655303617,15.31861627,124.94,124.77,45.0]
[1725655303827,31.19794511,124.93,124.77,45.0]
[1725655304119,8.0075,124.89,124.8,20.0319]
[1725655304332,20.0067,124.96,124.86,8.0088]
[1725655304624,22.6248346,124.98,124.81,65.0]
[1725655304625,24.62637726,124.98,124.87,45.0]
[1725655304796,8.007,124.89,124.86,45.0]
[1725655305115,20.0103,124.94,124.81,20.0291]
[1725655305315,27.3660346,124.95,124.8,72.56994995]
[1725655305521,22.0109447,124.95,124.83,20.027]
[1725655305697,8.0066,124.9,124.84,8.0102]
[1725655305899,22.01102593,124.95,124.83,20.027]
[1725655306115,22.01102593,124.95,124.81,8.0116]
[1725655306116,20.0127,124.93,124.81,8.0116]
[1725655306414,8.0096,124.85,124.79,20.0321]
[1725655306630,8.0093,124.86,124.8,8.0127]
[1725655306924,8.0109,124.83,124.79,20.0321]
[1725655307118,9.18783259,124.84,124.68,50.0]
[1725655307328,8.0134,124.8,124.74,8.0165]
[1725655307525,35.2939,124.85,124.74,8.0165]
[1725655307526,20.0,124.84,124.74,8.0165]
[1725655307705,20.0,124.79,124.74,20.0414]
[1725655307906,8.0118,124.82,124.74,20.0414]
[1725655308123,20.0,124.81,124.76,8.0153]
[1725655308335,20.0,124.81,124.74,20.0414]
[1725655308828,28.0124,124.81,124.76,8.0152]
[1725655309005,28.0124,124.81,124.77,45.0]
[1725655309327,8.0115,124.82,124.77,45.0]
[1725655309551,8.0107,124.84,124.78,8.014]
[1725655309709,8.0096,124.85,124.79,45.0]
[1725655310029,20.0191,124.89,124.79,45.0]
[1725655310219,20.0191,124.89,124.78,45.0]
[1725655310617,21.4028743,124.89,124.78,45.0]
[1725655311315,8.01,124.85,124.8,8.0126]
[1725655311526,8.01,124.85,124.81,45.0]
[1725655311705,20.0191,124.89,124.81,45.0]
[1725655311908,8.0101,124.85,124.81,45.0]
[1725655312109,8.0105,124.84,124.81,45.0]
[1725655312303,8.0105,124.84,124.8,45.0]
[1725655313214,20.0222,124.87,124.77,20.0367]
[1725655313549,20.0222,124.87,124.71,112.631]
[1725655313550,20.0,124.83,124.74,20.0412]
[1725655313713,8.0122,124.81,124.74,20.0412]
[1725655314029,8.0154,124.76,124.71,50.604]
[1725655314219,8.0148,124.77,124.72,8.0179]
[1725655314635,8.0142,124.78,124.73,8.0171]
[1725655315013,20.0,124.83,124.73,20.0422]
[1725655315215,20.0,124.83,124.75,20.0388]
[1725655315216,8.0117,124.82,124.75,20.0388]
[1725655315437,8.0117,124.82,124.76,45.0]
[1725655315933,20.0,124.83,124.77,20.0353]
[1725655316238,20.0,124.83,124.78,45.0]
[1725655316239,8.0109,124.83,124.78,45.0]
[1725655316912,8.0109,124.83,124.78,53.0135]
[1725655317241,8.0109,124.83,124.79,8.0132]
[1725655317433,8.0103,124.84,124.8,45.0]
[1725655317613,20.0224,124.87,124.8,45.0]
[1725655317813,20.0224,124.87,124.8,53.0127]
[1725655318018,5.79421262,124.9,124.8,53.0127]
[1725655318019,21.40059166,124.9,124.8,53.0127]
[1725655318513,8.0097,124.85,124.81,8.0121]
[1725655318715,8.0097,124.85,124.82,45.0]
[1725655319121,8.0105,124.84,124.81,45.0]
[1725655319329,8.0105,124.84,124.8,45.0]
[1725655319642,8.009,124.86,124.82,8.0114]
[1725655319848,8.0084,124.87,124.83,45.0]
[1725655320017,8.0097,124.85,124.83,45.0]
[1725655320214,8.0097,124.85,124.82,45.0]
[1725655320422,8.0122,124.81,124.76,8.0152]
[1725655320721,8.0123,124.81,124.77,8.0147]
[1725655320935,20.0234,124.86,124.72,20.0439]
[1725655320936,2.00306209,124.86,124.72,20.0439]
[1725655321323,8.0126,124.81,124.74,20.0401]
[1725655321529,7.3565346,124.88,124.73,40.0839]
[1725655321530,20.0197,124.88,124.73,40.0839]
[1725655321839,8.0097,124.85,124.81,8.0121]
[1725655322326,8.0097,124.85,124.8,8.0127]
[1725655322854,8.0083,124.87,124.81,45.0]
[1725655323021,27.53470761,124.91,124.81,45.0]
[1725655323022,8.0091,124.86,124.82,8.0109]
[1725655323219,27.53470761,124.91,124.81,45.0]
[1725655323220,2.00228791,124.9,124.83,45.0]
[1725655323446,8.0102,124.84,124.81,45.0]
[1725655323750,8.0109,124.83,124.81,45.0]
[1725655323924,8.0104,124.84,124.81,45.0]
[1725655324122,8.0095,124.86,124.81,53.0115]
[1725655324334,8.0097,124.85,124.81,45.0]
[1725655324545,20.0167,124.9,124.81,65.0295]
[1725655324755,24.22397874,124.96,124.81,45.0]
[1725655325046,8.0052,124.92,124.85,20.0226]
[1725655325246,8.0052,124.92,124.81,71.9092]
[1725655325247,28.14194095,124.96,124.87,20.02]
[1725655325454,26.1407,124.96,124.88,45.0]
[1725655325622,26.1407,124.96,124.88,53.0076]
[1725655326022,8.005,124.93,124.88,53.0076]
[1725655326225,8.0041,124.94,124.88,45.0]
[1725655326655,8.0049,124.93,124.88,45.0]
[1725655326820,8.007,124.89,124.88,45.0]
[1725655327025,8.0076,124.88,124.83,28.037]
[1725655327220,8.0071,124.89,124.84,8.0102]
[1725655327425,151.8097,124.94,124.83,20.0262]
[1725655327426,8.008,124.88,124.83,28.0369]
[1725655327826,8.008,124.88,124.75,50.0]
[1725655327827,2.00219934,124.91,124.8,20.0319]
[1725655328042,8.0076,124.89,124.83,8.0108]
[1725655328350,8.0076,124.89,124.84,8.0098]
[1725655328644,131.8,124.94,124.79,50.0]
[1725655328844,6.155,124.97,124.79,50.0]
[1725655329048,8.005,124.93,124.87,28.0289]
[1725655329354,8.005,124.93,124.88,45.0]
[1725655329556,131.8,124.99,124.9,28.022]
[1725655329736,161.68486061,125.01,124.91,53.0055]
[1725655329927,8.0024,124.97,124.91,53.0055]
[1725655330723,8.0027,124.96,124.91,53.0055]
[1725655331422,8.0033,124.95,124.91,45.0]
[1725655331933,2.00063028,125.0,124.91,45.0]
[1725655331934,2.00093976,125.0,124.91,45.0]
[1725655332255,8.0032,124.95,124.91,45.0]
[1725655332453,8.004,124.94,124.91,45.0]
[1725655332632,2.00117895,124.98,124.87,20.0203]
[1725655332957,8.0049,124.93,124.88,8.007]
[1725655333134,20.0059,124.97,124.87,20.0203]
[1725655333444,20.0121,124.93,124.84,20.0248]
[1725655333648,8.0077,124.88,124.84,20.0248]
[1725655333837,8.0077,124.88,124.81,46.5802]
[1725655333838,8.0089,124.86,124.81,34.5618]
[1725655334041,8.0089,124.86,124.81,20.0297]
[1725655334251,20.0187,124.89,124.8,16.1142]
[1725655334439,20.0,124.88,124.8,16.1142]
[1725655334839,28.0077,124.88,124.84,8.0101]
[1725655335041,20.0,124.88,124.82,20.0279]
[1725655335226,20.0,124.88,124.83,8.0106]
[1725655335227,28.0077,124.88,124.83,8.0106]
[1725655335431,8.0077,124.88,124.83,8.0106]
[1725655336050,20.0,124.91,124.84,20.0248]
[1725655336239,8.0058,124.91,124.87,8.0083]
[1725655336438,8.0058,124.91,124.8,56.1772]
[1725655336439,6.4579,124.97,124.86,20.0217]
[1725655336634,20.004,124.98,124.87,45.0]
[1725655336842,20.004,124.98,124.9,8.0059]
[1725655337156,20.004,124.98,124.91,45.0]
[1725655337157,8.0032,124.95,124.91,45.0]
[1725655337533,8.0032,124.95,124.91,53.0057]
[1725655337840,8.0026,124.96,124.91,53.0057]
[1725655338030,20.004,124.98,124.91,53.0057]
[1725655338031,8.0032,124.95,124.91,53.0057]
[1725655338232,20.004,124.98,124.91,45.0]
[1725655338428,8.0037,124.95,124.91,45.0]
[1725655338944,8.0027,124.96,124.91,73.0193]
[1725655339256,8.0006,124.99,124.94,8.0038]
[1725655339558,131.8,125.04,124.95,45.0]
[1725655339559,8.0022,124.97,124.95,45.0]
[1725655339768,2.00034463,125.03,124.91,45.0]
[1725655339769,19.9991,125.01,124.91,45.0]
[1725655340150,8.002,124.97,124.91,53.0051]
[1725655340336,8.002,124.97,124.92,8.005]
[1725655340666,8.0025,124.97,124.93,45.0]
[1725655340882,20.0,124.96,124.91,73.02]
[1725655341366,20.0,124.96,124.91,45.0]
[1725655341569,8.0032,124.95,124.9,53.0061]
[1725655341861,8.0025,124.96,124.91,8.0055]
[1725655342065,20.0,124.95,124.92,45.0]
[1725655343147,8.0015,124.98,124.93,8.0044]
[1725655343353,8.0006,124.99,124.94,45.0]
[1725655343534,8.0023,124.97,124.94,45.0]
[1725655343845,8.0033,124.95,124.9,8.0063]
[1725655344046,8.0044,124.94,124.88,28.0261]
[1725655344239,8.0044,124.94,124.89,8.0067]
[1725655345172,20.0,124.93,124.89,8.007]
[1725655345342,8.005,124.93,124.88,28.0267]
[1725655345543,20.0,124.94,124.88,20.0191]
[1725655345737,20.0,124.94,124.85,16.3917]
[1725655345738,2.00128064,124.93,124.81,6.2553]
[1725655346272,2.00128064,124.93,124.8,15.6638]
[1725655346443,20.0186,124.89,124.76,6.2553]
[1725655346763,8.0109,124.83,124.78,8.0139]
[1725655346973,8.0103,124.84,124.79,8.0134]
[1725655347143,20.0,124.83,124.78,20.034]
[1725655347353,20.0,124.83,124.78,28.048]
[1725655347354,28.0109,124.83,124.78,28.048]
[1725655347548,8.0115,124.82,124.78,20.034]
[1725655348597,8.0089,124.87,124.81,8.012]
[1725655348753,20.0,124.86,124.82,8.0115]
[1725655349270,20.0,124.86,124.8,20.0307]
[1725655349271,28.0092,124.86,124.8,20.0307]
[1725655349445,8.0097,124.85,124.8,20.0307]
[1725655349643,28.0104,124.84,124.8,20.0307]
[1725655349849,8.0104,124.84,124.81,45.0]
[1725655350160,28.009,124.86,124.81,53.012]
[1725655350456,20.0,124.88,124.82,20.0275]
[1725655350660,22.01603067,124.92,124.82,20.0275]
[1725655350661,8.0083,124.87,124.83,53.0103]
[1725655350866,20.0,124.86,124.83,53.0103]
[1725655351269,2.00218526,124.93,124.83,45.0]
[1725655351445,8.0059,124.91,124.86,8.0088]
[1725655351648,8.0059,124.91,124.87,45.0]
[1725655351859,20.0085,124.95,124.87,45.0]
[1725655352455,46.2106,124.97,124.87,45.0]
[1725655352647,6.2006,124.97,124.87,45.0]
[1725655352851,8.0019,124.97,124.92,8.0051]
[1725655353073,9.88606061,124.99,124.91,20.0143]
[1725655353272,2.00090045,125.0,124.92,53.005]